bitfinex/quotes_ETHUSD_20250223
["timestamp","ask_amount","ask_price","bid_price","bid_amount"]
[1740300256965,0.7587,2816.4,2816.0,3.55113]
[1740300259268,3.0,2816.5,2816.0,3.55113]
[1740300262394,0.787,2817.0,2816.1,0.7774]
[1740300262597,0.787,2817.0,2816.6,3.55037]
[1740300262803,0.08774142,2816.9,2816.8,4.32752]
[1740300262977,0.08774142,2816.9,2816.8,5.115297]
[1740300263178,3.787,2817.4,2816.9,3.54999]
[1740300264292,0.787,2817.4,2816.9,3.54999]
[1740300265301,0.787,2817.4,2817.1,3.54972]
[1740300266018,3.787,2817.4,2817.0,3.54986]
[1740300266586,3.787,2817.4,2816.9,3.54999]
[1740300266987,3.787,2817.4,2817.0,3.54986]
[1740300267285,3.787,2817.4,2816.9,3.54999]
[1740300268319,3.787,2817.4,2817.1,3.54971]
[1740300268487,3.0,2817.4,2817.1,3.54971]
[1740300269488,3.0,2817.4,2817.3,3.54949]
[1740300270109,3.0,2817.4,2817.1,3.54966]
[1740300270586,3.0,2817.4,2817.0,4.24566329]
[1740300270988,3.0,2817.4,2817.0,0.69589329]
[1740300271385,3.0,2817.4,2817.0,4.24569329]
[1740300273599,3.5495,2817.3,2817.0,0.69589329]
[1740300273802,4.05831662,2817.4,2817.0,0.69589329]
[1740300274327,0.7784,2817.3,2817.0,0.69589329]
[1740300274506,0.7784,2817.3,2816.8,3.55005]
[1740300275322,3.25193391,2817.2,2816.6,0.69589329]
[1740300275621,4.06079896,2817.2,2816.8,3.55009]
[1740300276810,4.06079896,2817.2,2816.6,7.79642329]
[1740300277016,4.06079896,2817.2,2816.7,3.55025]
[1740300277825,0.08629945,2817.1,2816.7,3.55025]
[1740300279421,0.08629945,2817.1,2816.6,0.69589329]
[1740300279628,1.22560984,2817.0,2816.7,3.55024]
[1740300279791,0.8109,2817.0,2816.8,3.55004]
[1740300280119,0.08629945,2816.9,2816.8,0.8271]
[1740300280323,0.8109,2817.4,2816.8,4.37722]
[1740300280618,0.08602501,2816.9,2816.8,5.07311329]
[1740300280802,0.8109,2817.4,2816.8,5.07311329]
[1740300281007,0.08602501,2816.9,2816.8,5.07311329]
[1740300281213,0.8109,2817.4,2816.9,3.54999]
[1740300282309,0.8109,2817.4,2817.1,3.54964]
[1740300282501,0.8109,2817.4,2817.2,3.54954]
[1740300282708,7.06641623,2817.6,2817.2,3.54954]
[1740300283005,8.12794585,2817.6,2817.2,3.54954]
[1740300283205,8.12794585,2817.6,2817.1,7.0993]
[1740300283401,8.12794585,2817.6,2817.1,3.54964]
[1740300283827,8.12794585,2817.6,2816.8,1.52299329]
[1740300284029,7.06641623,2817.6,2816.8,1.52299329]
[1740300284327,7.06641623,2817.6,2817.2,7.09903]
[1740300284830,7.06641623,2817.6,2817.2,3.54951]
[1740300285034,7.06641623,2817.6,2817.4,3.54934]
[1740300285488,7.06641623,2817.6,2817.3,3.54948]
[1740300285694,7.06641623,2817.6,2817.2,3.54951]
[1740300286533,7.06641623,2817.6,2817.3,3.54949]
[1740300288003,7.06641623,2817.6,2817.4,3.54935]
[1740300288233,3.00358232,2817.6,2817.4,3.54935]
[1740300290243,3.00358232,2817.6,2817.4,3.54929]
[1740300291836,3.00358232,2817.6,2817.4,7.09858]
[1740300292136,3.00358232,2817.6,2817.3,4.24527329]
[1740300292314,0.00358232,2817.6,2817.5,3.54924]
[1740300292809,0.09004473,2817.6,2817.5,3.54924]
[1740300293159,0.00358232,2817.6,2817.4,3.54933]
[1740300293355,0.09004473,2817.6,2817.4,3.54933]
[1740300293655,0.09004473,2817.6,2817.5,3.54924]
[1740300296709,1.66490359,2817.6,2817.5,3.54924]
[1740300296887,1.66490359,2817.6,2817.4,3.54934]
[1740300297228,0.7974,2817.5,2817.3,0.69589329]
[1740300297460,1.57485886,2817.4,2817.3,0.69589329]
[1740300297866,1.66175861,2817.4,2817.3,0.69589329]
[1740300298236,1.66175861,2817.4,2817.1,3.54965]
[1740300298783,0.08689975,2817.4,2817.0,0.69589329]
[1740300298945,0.08689975,2817.4,2817.0,4.24569329]
[1740300299353,0.85548963,2817.4,2817.0,4.24569329]
[1740300300081,0.85548963,2817.4,2817.0,0.69589329]
[1740300302279,0.85548963,2817.4,2817.0,4.24565329]
[1740300302483,0.08689975,2817.4,2817.1,3.54972]
[1740300302634,0.08689975,2817.4,2817.0,4.24573329]
[1740300303337,0.08689975,2817.4,2817.0,0.69589329]
[1740300303535,0.08689975,2817.4,2817.0,4.24573329]
[1740300304044,3.08689975,2817.4,2817.1,3.54971]
[1740300304952,0.08689975,2817.4,2817.3,3.54949]
[1740300305157,0.00358232,2817.6,2817.3,3.54949]
[1740300305360,0.0866425,2817.5,2817.2,3.54962]
[1740300305754,0.0866425,2817.5,2817.3,3.54949]
[1740300305944,0.0866425,2817.5,2817.4,3.54937]
[1740300306332,0.0866425,2817.5,2817.2,3.54962]
[1740300306333,0.0866425,2817.5,2817.3,3.54946]
[1740300306663,0.0866425,2817.5,2817.2,3.54962]
[1740300307285,10.24874175,2817.5,2817.0,0.7837]
[1740300307504,0.7551,2817.4,2817.0,3.54985]
[1740300307791,0.08665108,2817.3,2817.0,3.54985]
[1740300308760,0.08665108,2817.3,2816.9,3.54999]
[1740300309440,0.08665108,2817.3,2816.8,7.1001]
[1740300309796,0.08665108,2817.3,2816.9,3.54999]
[1740300310690,0.08665108,2817.3,2816.8,7.10006]
[1740300311048,0.08665108,2817.3,2816.9,3.55]
[1740300311264,0.08665108,2817.3,2816.8,7.10006]
[1740300312080,0.08665108,2817.3,2816.8,7.87103304]
[1740300312270,0.08665108,2817.3,2816.8,7.87105304]
[1740300312884,0.08665108,2817.3,2816.8,4.32100304]
[1740300313693,0.08665108,2817.3,2816.8,7.87106304]
[1740300314195,0.08665108,2817.3,2816.8,4.32100304]
[1740300314492,0.08665108,2817.3,2816.8,7.87105304]
[1740300314695,0.08665108,2817.3,2816.8,4.32100304]
[1740300314851,3.63614108,2817.3,2816.8,4.32100304]
[1740300315052,0.08665108,2817.3,2816.8,3.55002]
[1740300315899,3.63617108,2817.3,2816.8,3.55002]
[1740300316085,3.63617108,2817.3,2816.8,4.24591329]
[1740300316384,6.79883677,2816.9,2816.8,0.69589329]
[1740300316683,6.79883677,2816.9,2816.2,4.33447]
[1740300316684,3.3352563,2816.9,2816.3,4.24662329]
[1740300316882,3.55014,2816.8,2816.3,4.24662329]
[1740300317584,0.08641953,2816.7,2816.3,4.24662329]
[1740300317787,3.55014,2816.8,2816.3,4.24662329]
[1740300318078,0.08641953,2816.7,2816.3,4.24662329]
[1740300318386,3.55014,2816.8,2816.3,4.24662329]
[1740300318562,0.08641953,2816.7,2816.4,3.55062]
[1740300318763,3.55,2816.9,2816.3,8.65539262]
[1740300318964,0.08641953,2816.8,2816.3,8.65533262]
[1740300319459,0.08641953,2816.8,2816.3,5.10466262]
[1740300319772,0.08641953,2816.8,2816.5,3.55049]
[1740300319974,3.55001,2816.9,2816.3,5.10466262]
[1740300320173,0.08641953,2816.8,2816.5,3.5505]
[1740300320354,0.7551,2817.0,2816.6,3.5503]
[1740300320550,0.08641953,2816.9,2816.5,3.5505]
[1740300320783,0.08641953,2816.9,2816.6,3.55035]
[1740300321086,0.08641953,2816.9,2816.5,7.10093]
[1740300321274,0.08641953,2816.9,2816.5,4.38899596]
[1740300322154,0.08641953,2816.9,2816.6,3.55037]
[1740300322447,0.08641953,2816.9,2816.6,0.7538]
[1740300322647,0.08641953,2816.9,2816.8,3.55012]
[1740300322847,4.32067,2817.4,2816.7,3.55014]
[1740300323092,0.08581911,2816.9,2816.7,3.55014]
[1740300323252,3.0,2817.2,2816.7,3.55014]
[1740300323450,0.08581911,2816.8,2816.7,3.55014]
[1740300323650,0.70853599,2816.9,2816.7,3.55014]
[1740300323854,0.08581911,2816.8,2816.7,3.55014]
[1740300324154,0.08581911,2816.8,2816.7,4.4194346]
[1740300325668,0.08581911,2816.8,2816.7,5.2167346]
[1740300326255,0.08581911,2816.8,2816.7,5.91262789]
[1740300326691,0.70853599,2816.9,2816.8,4.34742]
[1740300330667,3.24883677,2817.6,2817.3,3.54942]
[1740300330866,3.24883677,2817.6,2817.3,4.24531329]
[1740300331066,0.08336023,2817.5,2817.3,4.24531329]
[1740300331488,0.08336023,2817.5,2817.4,3.54937]
[1740300332088,0.08336023,2817.5,2817.3,0.69589329]
[1740300332303,8.2257897,2817.4,2817.3,0.69589329]
[1740300332799,8.30941612,2817.4,2817.3,0.69589329]
[1740300333900,3.96684612,2817.4,2816.6,0.69589329]
[1740300334071,4.04203677,2816.8,2816.6,0.69589329]
[1740300334394,0.08321421,2816.7,2816.6,0.69589329]
[1740300334600,4.04203677,2816.8,2816.6,0.69589329]
[1740300334801,0.08321421,2816.7,2816.6,0.69589329]
[1740300335169,3.24883677,2816.8,2816.6,0.69589329]
[1740300335398,0.08321421,2816.7,2816.6,0.69589329]
[1740300335578,3.24883677,2816.8,2816.6,0.69589329]
[1740300335901,0.08321421,2816.7,2816.6,0.69589329]
[1740300336279,3.24883677,2816.8,2816.6,0.69589329]
[1740300336480,0.08321421,2816.7,2816.6,0.69589329]
[1740300336780,3.24883677,2816.8,2816.6,0.69589329]
[1740300336979,0.08321421,2816.7,2816.6,0.69589329]
[1740300337198,3.24883677,2816.8,2816.6,0.69589329]
[1740300337401,0.08321421,2816.7,2816.6,0.69589329]
[1740300337699,3.24883677,2816.8,2816.6,0.69589329]
[1740300338000,0.08321421,2816.7,2816.6,0.69589329]
[1740300338195,0.7932,2816.9,2816.6,0.69589329]
[1740300338395,0.08321421,2816.8,2816.6,0.69589329]
[1740300342105,3.63335421,2816.8,2816.6,0.69589329]
[1740300342472,4.1297024,2816.8,2816.4,0.69589329]
[1740300342674,7.63113677,2816.5,2816.4,0.69589329]
[1740300342875,3.55095,2816.2,2815.7,0.7744]
[1740300343074,4.38284,2816.1,2815.6,4.24745329]
[1740300343486,3.55133,2815.9,2815.6,0.69589329]
[1740300344005,0.08230376,2815.8,2815.6,0.69589329]
[1740300345174,4.38284,2816.1,2815.6,0.69589329]
[1740300345377,0.08202026,2816.0,2815.6,4.24749329]
[1740300347716,0.08202026,2816.0,2815.6,0.69589329]
[1740300347901,0.08202026,2816.0,2815.6,4.24752329]
[1740300348593,0.08202026,2816.0,2815.7,3.55143]
[1740300349795,0.08202026,2816.0,2815.6,0.69589329]
[1740300349982,3.55134,2815.9,2815.6,0.69589329]
[1740300350384,0.08202026,2815.8,2815.6,0.69589329]
[1740300351920,4.2674057,2816.0,2815.6,0.69589329]
[1740300352113,0.08202026,2815.7,2815.6,0.69589329]
[1740300352719,4.2674057,2816.0,2815.6,0.69589329]
[1740300353020,4.36128057,2815.9,2815.6,0.69589329]
[1740300353217,0.08202026,2815.8,2815.6,0.69589329]
[1740300354811,3.63342026,2815.8,2815.4,0.69589329]
[1740300355011,0.7941,2815.7,2815.4,0.69589329]
[1740300355218,0.08144448,2815.6,2815.4,0.69589329]
[1740300357523,3.55226,2815.2,2815.0,0.69589329]
[1740300357727,0.7941,2815.3,2815.0,0.69589329]
[1740300358019,0.262,2815.9,2815.4,3.55188]
[1740300358020,0.7941,2815.7,2815.4,3.55188]
[1740300358223,0.7941,2815.9,2815.6,3.55164]
[1740300358398,0.7941,2815.9,2815.5,3.55173]
[1740300358603,0.7941,2815.9,2815.3,3.55189]
[1740300358813,0.7941,2815.9,2815.5,3.55174]
[1740300359018,0.7941,2815.9,2815.5,3.55169]
[1740300359222,0.7941,2815.9,2815.6,3.55163]
[1740300359711,3.8188,2816.2,2815.4,0.7558]
[1740300359916,0.74126332,2815.8,2815.4,5.00349329]
[1740300360226,0.74126332,2815.8,2815.4,1.45169329]
[1740300360402,3.74126332,2815.8,2815.4,1.45169329]
[1740300360609,0.74126332,2815.8,2815.6,3.55164]
[1740300360811,0.74126332,2815.8,2815.6,3.55162]
[1740300361125,0.28510128,2815.7,2815.4,0.69589329]
[1740300361696,3.83667128,2815.7,2815.4,0.69589329]
[1740300362028,3.55176,2815.5,2815.4,0.69589329]
[1740300362192,0.75064841,2815.7,2815.2,3.55213]
[1740300362395,0.28510128,2815.6,2815.2,3.55213]
[1740300362830,3.83674128,2815.6,2815.0,4.24820329]
[1740300363196,0.28510128,2815.6,2815.1,3.55226]
[1740300363831,0.28510128,2815.5,2815.1,3.55226]
[1740300364527,0.28510128,2815.5,2815.3,3.552]
[1740300364708,0.28510128,2815.5,2815.4,4.38249]
[1740300365230,0.28510128,2815.6,2815.4,4.38249]
[1740300366232,0.28510128,2815.7,2815.4,4.38249]
[1740300366600,0.28510128,2815.7,2815.4,5.07838329]
[1740300367332,3.28510128,2815.7,2815.4,0.69589329]
[1740300367493,0.28510128,2815.6,2815.4,0.69589329]
[1740300367900,0.0805764,2815.5,2815.4,0.69589329]
[1740300369034,0.36567768,2815.5,2815.4,4.24778329]
[1740300370001,0.36567768,2815.5,2815.4,5.11081462]
[1740300370431,0.36567768,2815.5,2815.4,5.94141462]
[1740300371847,0.28510128,2815.5,2815.4,5.94141462]
[1740300372022,0.28510128,2815.5,2815.4,6.16518362]
[1740300372735,0.28510128,2815.5,2815.4,15.06518362]
[1740300373412,1.28e-06,2815.5,2815.4,15.06518362]
[1740300374225,0.69793791,2815.5,2815.4,15.76148407]
[1740300374511,0.69793663,2815.5,2815.4,15.76148407]
[1740300374726,7.58864677,2816.4,2815.8,3.55131]
[1740300375039,0.7891,2816.2,2815.8,0.69589329]
[1740300375335,4.34006,2816.2,2815.8,0.69589329]
[1740300375541,3.63219671,2816.1,2815.8,0.69589329]
[1740300376033,3.55115,2816.0,2815.8,0.69589329]
[1740300376235,0.08128984,2816.0,2815.8,0.69589329]
[1740300376437,7.89103,2816.2,2815.8,0.69589329]
[1740300376639,0.08128984,2815.9,2815.8,0.69589329]
[1740300376801,7.89103,2816.2,2815.8,0.69589329]
[1740300376999,0.08128984,2815.9,2815.8,0.69589329]
[1740300377203,4.34006,2816.2,2815.8,0.69589329]
[1740300377402,0.08128984,2815.9,2815.8,0.69589329]
[1740300377615,4.34006,2816.2,2815.8,0.69589329]
[1740300377836,0.08128984,2815.9,2815.8,0.69589329]
[1740300378153,4.34006,2816.2,2815.8,0.69589329]
[1740300378315,0.08128984,2815.9,2815.8,0.69589329]
[1740300378515,4.34006,2816.2,2815.8,0.69589329]
[1740300378715,0.08128984,2815.9,2815.8,0.69589329]
[1740300378915,4.34006,2816.2,2815.8,0.69589329]
[1740300379117,0.08128984,2815.9,2815.8,0.69589329]
[1740300379346,4.34006,2816.2,2815.8,0.69589329]
[1740300379538,0.08128984,2815.9,2815.8,0.69589329]
[1740300379738,4.34006,2816.2,2815.8,0.69589329]
[1740300379938,0.08128984,2815.9,2815.8,0.69589329]
[1740300380139,4.34006,2816.2,2815.8,0.69589329]
[1740300380335,0.08128984,2815.9,2815.8,0.69589329]
[1740300380540,4.34006,2816.2,2815.8,0.69589329]
[1740300380736,0.08128984,2815.9,2815.8,0.69589329]
[1740300380939,3.55112,2816.1,2815.8,0.69589329]
[1740300381124,0.08128984,2815.9,2815.8,0.69589329]
[1740300381330,0.7891,2816.2,2815.8,0.69589329]
[1740300381513,0.08128984,2815.9,2815.8,0.69589329]
[1740300381719,4.33999,2816.2,2815.8,0.69589329]
[1740300381948,0.08128984,2815.9,2815.8,0.69589329]
[1740300382148,3.55115,2816.0,2815.8,0.69589329]
[1740300382466,0.90238984,2815.9,2815.8,0.69589329]
[1740300383751,0.08128984,2815.9,2815.8,0.69589329]
[1740300384122,3.63254984,2815.9,2815.8,0.69589329]
[1740300384455,3.55142,2815.8,2815.5,0.69589329]
[1740300384641,0.08126406,2815.7,2815.5,0.69589329]
[1740300384950,3.55142,2815.8,2815.5,0.69589329]
[1740300385145,0.08126406,2815.6,2815.5,0.69589329]
[1740300385351,3.55142,2815.8,2815.5,0.69589329]
[1740300385550,0.08126406,2815.6,2815.5,0.69589329]
[1740300385758,3.55142,2815.8,2815.5,0.69589329]
[1740300385954,0.08126406,2815.6,2815.5,0.69589329]
[1740300386552,0.8254,2815.9,2815.5,0.69589329]
[1740300386745,0.08126406,2815.6,2815.5,0.69589329]
[1740300386949,0.8254,2815.9,2815.5,4.24763329]
[1740300387123,0.08126406,2815.6,2815.5,4.24763329]
[1740300387319,3.0,2816.0,2815.5,5.85445252]
[1740300387540,0.08126406,2815.6,2815.5,5.85445252]
[1740300387744,3.0,2816.0,2815.5,5.85445252]
[1740300387956,0.08126406,2815.6,2815.5,5.05213329]
[1740300388433,6.55116,2816.0,2815.5,5.05213329]
[1740300388756,3.0,2816.0,2815.6,3.55163]
[1740300390259,3.0,2816.0,2815.5,1.50039329]
[1740300390461,0.8254,2815.7,2815.4,0.223769]
[1740300390666,4.23282368,2815.7,2815.4,0.223769]
[1740300391561,3.55176,2815.5,2815.4,0.223769]
[1740300391961,9.80059677,2815.5,2815.4,0.223769]
[1740300392134,10.62599677,2815.5,2815.4,0.223769]
[1740300392826,11.36313258,2815.5,2815.4,0.223769]
[1740300393154,12.89535221,2815.5,2815.4,0.223769]
[1740300396063,13.44535221,2815.5,2815.4,0.223769]
[1740300396770,14.14352212,2815.5,2815.4,0.93887028]
[1740300397671,14.22396954,2815.5,2815.4,0.93887028]
[1740300399544,13.7703475,2815.5,2815.4,0.93887028]
[1740300400434,13.48683373,2815.5,2815.4,0.93887028]
[1740300401070,13.77017242,2815.5,2815.4,0.93887028]
[1740300402973,4.06195602,2815.5,2815.4,0.93887028]
[1740300403154,7.61371602,2815.5,2815.4,0.93887028]
[1740300405075,8.95061602,2815.5,2815.4,0.93887028]
[1740300405787,9.17431602,2815.5,2815.4,0.93887028]
[1740300406277,9.17431602,2815.5,2815.4,0.223769]
[1740300406455,10.7718043,2815.5,2815.4,0.223769]
[1740300415584,1.28565602,2815.5,2815.4,0.223769]
[1740300415803,4.83741602,2815.5,2815.4,0.223769]
[1740300416003,7.83741602,2815.5,2815.4,0.223769]
[1740300416180,8.38741602,2815.5,2815.4,0.223769]
[1740300417770,8.10407733,2815.5,2815.4,0.223769]
[1740300418099,9.67322274,2815.5,2815.4,0.223769]
[1740300418307,10.46012274,2815.5,2815.4,0.223769]
[1740300420211,10.72212274,2815.5,2815.4,0.223769]
[1740300420797,10.72212274,2815.5,2815.4,9e-06]
[1740300421932,3.5534,2814.2,2814.1,0.005]
[1740300422092,9.80223677,2814.2,2814.1,0.005]
[1740300422405,9.88138562,2814.2,2814.1,0.005]
[1740300422594,10.70438562,2814.2,2814.1,0.005]
[1740300422797,11.25438562,2814.2,2814.1,0.005]
[1740300422998,12.50798078,2814.2,2814.1,0.005]
[1740300423592,6.32798562,2814.2,2814.1,0.005]
[1740300423791,3.07914885,2814.2,2814.1,0.7635]
[1740300424008,3.07914885,2814.2,2814.1,4.31703]
[1740300424208,3.07914885,2814.2,2814.1,0.7635]
[1740300424402,0.07914885,2814.2,2814.1,0.7635]
[1740300424608,3.24883677,2814.5,2814.1,0.7635]
[1740300424803,3.0,2814.4,2814.1,0.7635]
[1740300425112,0.07786826,2814.4,2814.1,0.436718]
[1740300425317,0.07786826,2814.4,2814.3,4.31178]
[1740300425520,3.0,2814.7,2814.3,4.31178]
[1740300425683,3.0,2814.7,2814.3,0.7585]
[1740300425684,0.07785966,2814.4,2814.3,0.7585]
[1740300425882,6.55324,2814.4,2814.1,0.005]
[1740300426095,0.07786826,2814.3,2814.1,0.005]
[1740300428027,0.07786826,2814.3,2814.2,4.3119]
[1740300428185,6.55273,2814.8,2814.2,0.7585]
[1740300428603,0.07845346,2814.7,2814.2,0.7585]
[1740300429320,3.63124346,2814.7,2814.2,0.7585]
[1740300429624,3.0,2814.5,2814.2,0.7585]
[1740300429841,3.24883677,2814.4,2814.2,0.7585]
[1740300430320,0.07845346,2814.3,2814.2,0.7585]
[1740300434327,0.07845346,2814.3,2814.2,4.3119]
[1740300434630,3.24883677,2814.7,2814.2,4.81317933]
[1740300434823,0.07847067,2814.6,2814.2,4.81317933]
[1740300434992,0.07847067,2814.6,2814.2,0.7585]
[1740300435391,3.24883677,2814.4,2814.2,0.7585]
[1740300435807,0.07856533,2814.3,2814.2,0.7585]
[1740300438191,0.07856533,2814.3,2814.2,4.3119]
[1740300439199,3.24883677,2814.7,2814.2,4.3119]
[1740300439200,3.0,2814.7,2814.3,0.7841]
[1740300439557,0.07766261,2814.6,2814.5,3.55302]
[1740300439705,0.07766261,2814.6,2814.5,5.40306]
[1740300440024,3.24883677,2815.0,2814.6,0.7841]
[1740300440541,0.07766261,2814.9,2814.6,0.7841]
[1740300441832,0.07766261,2814.9,2814.6,4.33689]
[1740300443934,0.07766261,2814.9,2814.8,3.55265]
[1740300444135,0.07766261,2814.9,2814.8,5.46969762]
[1740300444338,6.24883677,2815.3,2814.8,1.91704762]
[1740300444634,6.24883677,2815.3,2814.8,1.49219329]
[1740300444635,3.24883677,2815.0,2814.8,1.49219329]
[1740300444958,0.0784888,2814.9,2814.8,5.04484329]
[1740300446036,0.0784888,2814.9,2814.8,1.49219329]
[1740300446202,0.0784888,2814.9,2814.8,0.69589329]
[1740300448336,0.07853182,2814.9,2814.8,0.69589329]
[1740300449740,0.07853182,2814.9,2814.6,4.34916]
[1740300452944,0.07853182,2814.9,2814.6,4.34913]
[1740300454551,3.24883677,2814.7,2814.5,0.69589329]
[1740300454758,3.5529,2814.6,2814.5,0.69589329]
[1740300455056,3.6313153,2814.6,2814.5,0.69589329]
[1740300455556,3.6313153,2814.6,2814.1,0.7925]
[1740300455557,3.55302,2814.5,2814.1,0.7925]
[1740300455721,3.24883677,2814.4,2814.1,0.7925]
[1740300455921,3.32720046,2814.4,2814.1,0.7925]
[1740300456153,3.32720046,2814.4,2814.1,0.005]
[1740300456359,5.07382251,2814.4,2814.1,0.005]
[1740300457350,4.08580046,2814.4,2814.1,0.005]
[1740300459756,4.08580046,2814.4,2814.2,0.72011812]
[1740300460867,4.08580046,2814.4,2814.1,0.005]
[1740300463068,7.63896046,2814.4,2814.1,0.005]
[1740300463443,4.08580046,2814.4,2814.1,0.005]
[1740300469178,7.63895046,2814.4,2814.1,0.005]
[1740300469375,3.55334,2814.3,2814.1,0.005]
[1740300469740,0.07759773,2814.2,2814.1,0.005]
[1740300470145,3.55334,2814.3,2814.1,0.005]
[1740300470346,0.07759773,2814.2,2814.1,0.005]
[1740300470776,5.42662982,2814.4,2814.1,0.005]
[1740300470978,0.07759773,2814.2,2814.1,0.005]
[1740300471141,4.00743677,2814.4,2814.1,0.005]
[1740300471346,0.07759773,2814.2,2814.1,0.005]
[1740300471548,4.00743677,2814.4,2814.1,0.005]
[1740300471748,0.07759773,2814.2,2814.1,0.005]
[1740300471946,4.00743677,2814.4,2814.1,0.005]
[1740300472151,0.07759773,2814.2,2814.1,0.005]
[1740300472381,4.00743677,2814.4,2814.1,0.005]
[1740300472582,0.07759773,2814.2,2814.1,0.005]
[1740300472781,7.56067677,2814.4,2814.1,0.005]
[1740300472981,0.07758913,2814.2,2814.1,0.005]
[1740300473183,7.56067677,2814.4,2814.1,0.005]
[1740300473346,0.07758913,2814.2,2814.1,0.005]
[1740300473551,5.41880945,2814.4,2814.1,0.005]
[1740300473881,0.07758913,2814.2,2814.1,0.005]
[1740300474180,5.41880945,2814.4,2814.1,0.005]
[1740300474386,0.7773731,2814.2,2814.1,0.005]
[1740300474581,0.69978397,2814.2,2814.1,0.005]
[1740300474887,0.7773731,2814.2,2814.1,3.55853]
[1740300476380,0.7773731,2814.2,2814.1,0.005]
[1740300476865,5.56659409,2814.2,2814.1,0.005]
[1740300477059,8.56659409,2814.2,2814.1,0.005]
[1740300477251,5.01319409,2814.2,2814.1,0.005]
[1740300477649,4.17999409,2814.2,2814.1,0.005]
[1740300477887,3.7773731,2814.2,2814.1,0.005]
[1740300478382,0.7773731,2814.2,2814.1,0.005]
[1740300478582,0.7773731,2814.2,2814.1,3.55853]
[1740300480090,2.6137428,2814.8,2814.1,3.55853]
[1740300480257,0.07447376,2814.7,2814.3,3.55328]
[1740300480590,3.0,2814.9,2814.5,3.55302]
[1740300480791,0.07468037,2814.6,2814.5,3.55302]
[1740300480964,3.0,2814.9,2814.6,3.55285]
[1740300481170,3.0,2814.9,2814.6,4.3737]
[1740300481369,0.7002484,2814.7,2814.6,4.3737]
[1740300481576,0.7002484,2814.7,2814.6,1.613572]
[1740300481785,0.7002484,2814.7,2814.6,0.8209]
[1740300482360,3.94908517,2814.7,2814.5,3.55302]
[1740300482564,3.94908517,2814.7,2814.6,3.5529]
[1740300485866,0.7002484,2814.7,2814.6,3.5529]
[1740300487299,0.7002484,2814.7,2814.6,4.3809]
[1740300487598,0.7002484,2814.7,2814.6,5.93977462]
[1740300487775,0.77523002,2814.7,2814.6,5.93977462]
[1740300487975,0.7002484,2814.7,2814.6,5.93977462]
[1740300494993,3.24883677,2815.3,2814.6,5.93977462]
[1740300495193,0.2237,2815.5,2814.6,5.93977462]
[1740300495194,0.2237,2815.5,2815.4,3.55189]
[1740300495384,0.2237,2815.5,2815.4,4.34508]
[1740300497308,0.2237,2815.5,2815.4,5.86897329]
[1740300501411,3.0,2816.3,2816.2,3.55088]
[1740300501785,3.07581623,2816.3,2816.1,3.551]
[1740300502186,3.07581623,2816.3,2816.1,3.55094]
[1740300503206,0.07581623,2816.3,2816.2,3.55088]
[1740300503415,0.07581623,2816.3,2816.2,5.02655162]
[1740300503720,0.07581623,2816.3,2816.2,5.85505162]
[1740300503923,3.24883677,2816.7,2816.5,3.55048]
[1740300504122,3.0,2816.9,2816.6,3.55037]
[1740300504331,3.55042,2816.6,2816.4,0.69589329]
[1740300504488,0.7598,2816.5,2816.4,0.69589329]
[1740300504886,0.83737088,2816.5,2816.4,0.69589329]
[1740300507226,10.63670765,2816.5,2816.4,0.69589329]
[1740300507527,12.05542042,2816.5,2816.4,0.69589329]
[1740300508623,12.05542042,2816.5,2816.4,1.42032121]
[1740300509135,12.05542042,2816.5,2816.4,0.72442792]
[1740300509494,12.05542042,2816.5,2815.7,5.07582329]
[1740300509723,3.55078,2816.3,2815.7,5.07582329]
[1740300509937,7.10165,2816.3,2815.7,5.07582329]
[1740300510093,3.32642485,2816.2,2815.7,5.07582329]
[1740300510434,3.32642485,2816.2,2815.8,3.55136]
[1740300511489,0.07758808,2816.2,2816.0,3.55113]
[1740300511724,0.07758808,2816.2,2816.1,3.55101]
[1740300511893,3.0,2816.5,2816.1,3.55101]
[1740300512094,0.07758808,2816.2,2816.1,3.55101]
[1740300512294,3.0,2816.5,2816.0,3.55113]
[1740300512516,3.0,2816.5,2816.2,3.55087]
[1740300513024,3.0,2816.5,2816.2,3.55085]
[1740300513233,3.0,2816.5,2816.0,4.07528483]
[1740300513424,3.0,2816.5,2816.1,3.55092]
[1740300514026,3.0,2816.5,2816.0,3.55105]
[1740300514229,3.0,2816.5,2816.1,3.55096]
[1740300515093,3.0,2816.5,2816.1,4.24685329]
[1740300515296,3.0,2816.5,2816.1,4.96455578]
[1740300515491,3.0,2816.5,2816.2,3.55085]
[1740300515930,3.0,2816.5,2816.1,1.41359578]
[1740300516424,3.0,2816.5,2816.2,3.55081]
[1740300516995,3.0,2816.5,2816.1,4.96447578]
[1740300517792,0.07742475,2816.4,2816.1,4.96447578]
[1740300517997,0.07742475,2816.4,2816.2,3.55081]
[1740300518906,0.07742475,2816.4,2816.2,3.5508]
[1740300519107,0.07742475,2816.4,2816.1,8.51537578]
[1740300519313,0.07742475,2816.4,2816.2,3.55086]
[1740300520433,0.07742475,2816.4,2816.1,8.51537578]
[1740300521414,0.07742475,2816.4,2816.2,3.55087]
[1740300521619,0.07742475,2816.4,2816.3,3.55075]
[1740300521811,0.07742475,2816.4,2816.2,4.40241458]
[1740300522118,3.0,2816.7,2816.2,4.40241458]
[1740300522312,0.07751072,2816.3,2816.2,3.55088]
[1740300522526,3.0,2816.7,2816.3,3.55075]
[1740300522727,0.07751072,2816.3,2816.2,3.55088]
[1740300522930,3.55038,2816.6,2816.1,1.41359578]
[1740300523416,0.07776865,2816.5,2816.1,1.41359578]
[1740300524440,0.07776865,2816.5,2816.1,4.96457578]
[1740300524734,0.8258,2816.4,2816.1,1.41359578]
[1740300525115,0.8258,2816.4,2816.1,4.96458578]
[1740300525310,0.07776865,2816.3,2816.1,1.41359578]
[1740300526609,0.07776865,2816.3,2816.1,6.28027936]
[1740300527126,0.8258,2816.6,2816.2,3.55088]
[1740300527437,0.8258,2816.6,2816.1,9.83118936]
[1740300527604,4.37618,2816.6,2816.1,2.23279578]
[1740300527934,0.8258,2816.6,2816.1,5.78371578]
[1740300528148,0.8258,2816.6,2816.3,3.55064]
[1740300528353,0.8258,2816.6,2816.1,2.23279578]
[1740300528354,0.8258,2816.6,2816.2,3.5508]
[1740300529010,0.8258,2816.6,2816.1,2.23279578]
[1740300529348,0.8258,2816.6,2816.2,3.55084]